[Event "Austrian Championship 2022"]
[Site "Vienna"]
[Date "2022.08.15"]
[Round "4.8"]
[White "Weichhart, Daniel"]
[Black "Wiedermann, Daniel"]
[Result "0-1"]
[ECO "E94"]
[WhiteElo "1965"]
[BlackElo "2053"]
[Annotator "TA"]
[PlyCount "106"]
[EventDate "2022.08.12"]
[EventType "swiss"]
[EventCountry "AUT"]
[SourceTitle "playchess.com"]
[Source "ChessBase"]
[SourceQuality "1"]
[TimeControl "40/5400+30:1800+30"]

{[%evp 16,106,52,47,82,62,93,66,63,53,89,95,88,89,86,89,84,76,92,93,191,81,83,75,94,58,87,99,93,68,109,56,66,35,43,49,42,47,137,135,146,143,183,151,204,203,205,136,127,127,131,45,60,52,48,66,104,83,83,81,75,88,93,75,96,78,58,45,37,37,37,37,139,120,143,136,620,604,522,523,887,781,834,810,858,777,632,-6435,-6197,-29969,-29971,-29979,-29980]} 1. c4 {[%emt 0:00:04]} Nf6 {[%emt 0:00:23]} 2. Nc3 {[%emt 0:00:08]} g6 {[%emt 0:00:02]} 3. d4 {[%emt 0:00:12]} Bg7 {[%emt 0:00:04]} 4. e4 {[%emt 0:00:07]} d6 {[%emt 0:00:03]} 5. Nf3 {[%emt 0:00:08]} O-O {[%emt 0:00:12]} 6. Be2 {[%emt 0:00:06]} Nbd7 {[%emt 0:00:30]} 7. O-O {[%emt 0:00:10]} e5 {[%emt 0:00:02]} 8. Be3 {[%emt 0:00:11]} Qe7 {[%emt 0:01:04]} 9. d5 {[%emt 0:05:45]} c5 $1 {[%emt 0:02:39][%mdl 4] outshines the older 9...Ng4. E94: King's Indian: Classical: 6 Be2 e5 7 0-0: Various Black 7th moves.} 10. Ne1 {[%emt 0:05:58]} Kh8 {[%emt 0:02:23]} 11. Kh1 {[%emt 0:04:22]} Ng8 {[%emt 0:00:44] White is slightly better.} 12. g4 {[%emt 0:00:25][%cal Bg2g4,Bg4g5][%mdl 32]} Bh6 {[%emt 0:08:52]} 13. Bxh6 {[%emt 0:05:36]} Nxh6 {[%emt 0:00:03]} 14. Qd2 {[%emt 0:00:09] [#]} Kg7 $146 {[%emt 0:00:55]} ({Predecessor:} 14... Ng8 15. Rg1 f5 16. gxf5 gxf5 17. Nf3 Ndf6 18. Ng5 h6 19. Ne6 Bxe6 20. dxe6 Qxe6 {0-1 (36) Taboas Rodriguez,D (2381)-Fressinet,L (2660) Chess.com INT 2017}) 15. g5 {[%emt 0:09:16]} Ng8 {[%emt 0:00:10]} 16. Nd3 {[%emt 0:00:07][%cal Be1d3,Bd3f2,Bf2e4][%mdl 32]} Nb6 {[%emt 0:22:26]} 17. b3 {[%emt 0:02:06]} f5 {[%emt 0:01:39]} (17... f6 $16 {is a better defense.}) 18. exf5 {[%emt 0:09:19]} (18. f4 $18) 18... Bxf5 $16 {[%emt 0:00:23]} 19. Rae1 {[%emt 0:04:11]} (19. f4 {with more complications.} Bxd3 20. Bxd3 Rxf4 21. Rxf4 exf4 22. Nb5) 19... Rae8 {[%emt 0:08:45]} 20. f3 {[%emt 0:12:50]} Nc8 {[%emt 0:13:23]} 21. Nf2 {[%emt 0:02:22]} Qd7 {[%emt 0:00:17]} 22. Nfe4 {[%emt 0:00:41]} Bh3 {[%emt 0:03:46]} 23. Rg1 {[%emt 0:00:13]} (23. Rf2 $16) 23... Rf4 $14 {[%emt 0:00:29]} 24. Rg3 {[%emt 0:01:03]} Ref8 {[%emt 0:01:07]} 25. Nf2 {[%emt 0:03:03]} Bf5 {[%emt 0:01:45]} 26. Bd1 {[%emt 0:04:39]} a6 {[%emt 0:01:59]} ({Black should try} 26... Qe7 $14) 27. Ne2 $1 $16 {[%emt 0:03:20]} Rh4 {[%emt 0:02:46]} 28. f4 $1 {[%emt 0:04:40]} Re8 {[%emt 0:01:32]} 29. Qc3 {[%emt 0:03:29]} Kf8 {[%emt 0:14:03]} (29... Kh8 $16 30. fxe5 Qg7) 30. fxe5 $18 {[%emt 0:01:20]} Rxe5 {[%emt 0:00:50]} 31. Ng1 {[%emt 0:06:25]} Rxe1 {[%emt 0:03:54]} 32. Qxe1 {[%emt 0:00:10]} Qe7 {[%emt 0:00:06]} 33. Qd2 {[%emt 0:00:23]} ({White should play} 33. Re3 $16 Qd8 34. Nf3) 33... Qe5 {[%emt 0:01:41] And now ...Qxg3 would win.} 34. Kg2 {[%emt 0:00:43]} Rd4 {[%emt 0:01:46]} 35. Qc1 {[%emt 0:00:54] Strongly threatening Nf3.} Rf4 {[%emt 0:02:34]} 36. Nf3 {[%emt 0:07:26]} Be4 {[%emt 0:00:44] [#]} 37. Nd3 $1 {[%emt 0:02:50]} Rxf3 {[%emt 0:01:59]} 38. Rxf3+ {[%emt 0:02:00]} Bxf3+ {[%emt 0:01:36]} 39. Bxf3 {[%emt 0:00:06]} Qf5 {[%emt 0:00:13]} 40. Qf4 $36 {[%emt 0:00:16][%mdl 2048] White is really pushing.} Nge7 {[%emt 0:01:40]} 41. Bg4 {[%emt 0:30:16]} Qxf4 {[%emt 0:30:47]} 42. Nxf4 $14 {[%emt 0:00:08][%mdl 4096] Endgame KBN-KNN} b5 {[%emt 0:00:22]} 43. Ne6+ {[%emt 0:01:18]} Kf7 {[%emt 0:00:00] [#]} (43... Kg8 $1 $14) 44. Nd8+ $1 $16 {[%emt 0:00:00]} Ke8 {[%emt 0:00:00] [#]} 45. Nb7 {[%emt 0:00:00]} Nf5 $2 {[%emt 0:00:00][%mdl 8192]} (45... b4 $16 46. Kf3 Kf8) 46. Bxf5 $18 {[%emt 0:00:00]} gxf5 {[%emt 0:00:00] KN-KN} 47. h4 {[%emt 0:00:00][%cal Bh2h4,Bh4h5][%mdl 32]} Kd7 {[%emt 0:00:00]} 48. h5 {[%emt 0:00:00]} Ke7 {[%emt 0:00:00]} 49. Kf3 {[%emt 0:00:00]} bxc4 {[%emt 0:00:00]} 50. bxc4 {[%emt 0:00:00]} Nb6 {[%emt 0:00:00]} 51. Nxd6 $4 {[%emt 0:00:00][%mdl 8192]} Kxd6 $19 {[%emt 0:00:00]} 52. g6 {[%emt 0:00:00]} hxg6 {[%emt 0:00:00]} 53. h6 {[%emt 0:00:00]} Nxc4 {[%emt 0:00:00] Both players deserved the win here.  Weighted Error Value: White=0.40/Black=0.45} 0-1

[Event "Austrian Championship 2022"]
[Site "Vienna"]
[Date "2022.08.15"]
[Round "4.9"]
[White "Gschiel, Alexander"]
[Black "Schernthaner, David"]
[Result "1/2-1/2"]
[ECO "A37"]
[WhiteElo "2215"]
[BlackElo "2319"]
[Annotator "TA"]
[PlyCount "99"]
[EventDate "2022.08.12"]
[EventType "swiss"]
[EventCountry "AUT"]
[SourceTitle "playchess.com"]
[Source "ChessBase"]
[SourceQuality "1"]
[TimeControl "40/5400+30:1800+30"]

{[%evp 18,99,0,-2,0,0,29,19,37,39,53,35,43,46,68,61,96,99,100,83,97,-22,0,-64,0,-133,-144,-133,-141,-308,-289,-270,-266,-239,-239,-475,-481,-423,-135,-137,-152,-186,-141,-139,0,4,28,-22,38,38,38,38,38,40,45,12,18,0,0,0,78,0,0,0,0,0,0,0,148,148,194,194,220,20,1130,0,0,0,0,0,0,0,0,0]} 1. c4 {[%emt 0:00:04]} c5 {[%emt 0:00:08]} 2. Nc3 {[%emt 0:00:18]} Nc6 {[%emt 0:00:06]} 3. Nf3 {[%emt 0:00:06]} e5 {[%emt 0:00:55]} 4. g3 {[%emt 0:03:32]} g6 {[%emt 0:01:01]} 5. Bg2 {[%emt 0:00:10]} Bg7 {[%emt 0:00:07]} 6. O-O {[%emt 0:00:32]} Nge7 {[%emt 0:00:25]} 7. a3 {[%emt 0:03:19]} O-O {[%emt 0:03:07]} 8. Rb1 {[%emt 0:03:09]} a5 {[%emt 0:02:12]} 9. d3 {[%emt 0:05:48]} d6 {[%emt 0:01:42]} 10. Bd2 {[%emt 0:02:15]} Be6 {[%emt 0:01:51] A37: Symmetrical English vs ...g6: 4 Bg2 Bg7 5 Nf3.} 11. Qc1 {[%emt 0:01:01] [#]} Rc8 $146 {[%emt 0:08:55]} ({Predecessor:} 11... Rb8 12. Nb5 f6 13. Bh6 Bxh6 14. Qxh6 d5 15. cxd5 Nxd5 16. h4 Qd7 17. Rbc1 Nce7 18. Nc3 {1-0 (37) Mogranzini,R (2469)-Rombaldoni,D (2533) Perugia 2011}) 12. Ng5 {[%emt 0:08:29]} Bd7 {[%emt 0:14:52]} 13. Nge4 {[%emt 0:05:40]} Be6 {[%emt 0:09:04]} 14. Nb5 {[%emt 0:07:19]} Nd4 {[%emt 0:08:03]} 15. Nxd4 {[%emt 0:00:32]} cxd4 {[%emt 0:02:14]} 16. b4 $1 {[%emt 0:13:45]} axb4 {[%emt 0:09:29]} 17. Bxb4 {[%emt 0:04:58]} d5 {[%emt 0:05:35]} 18. Nd6 {[%emt 0:04:42]} Rb8 {[%emt 0:00:22]} 19. Nb5 {[%emt 0:02:35] White is much more active. The black rooks are badly placed.} (19. a4 $1 $16) 19... dxc4 $11 {[%emt 0:04:03]} 20. Bd6 {[%emt 0:05:52]} (20. dxc4 $11 Qd7 21. Bd6) 20... cxd3 {[%emt 0:01:09]} (20... Rc8 $15 21. Bxb7 Qd7 22. Bxc8 Rxc8 23. dxc4 Rxc4) 21. Bxb8 {[%emt 0:00:07]} (21. exd3 $11 {was the only way to keep the balance.} Rc8 22. Qe1) 21... dxe2 $17 {[%emt 0:00:05]} 22. Re1 {[%emt 0:01:20]} Qxb8 {[%emt 0:00:25]} 23. Nc7 $2 {[%emt 0:01:58]} (23. Rxe2 $17 Nd5 24. Re1) 23... Bf5 $19 {[%emt 0:13:52]} 24. Rxb7 {[%emt 0:02:30]} Qc8 {[%emt 0:01:35]} 25. Rxe2 {[%emt 0:03:26]} d3 $1 {[%emt 0:00:44]} 26. Reb2 {[%emt 0:01:15]} (26. Re1 {keeps fighting.} e4 27. Bxe4 Bxe4 28. Rxe4 Qxb7 29. Rxe7) 26... e4 {[%emt 0:00:40]} 27. Rb1 {[%emt 0:01:03]} Qd7 $2 {[%emt 0:03:43]} (27... Rd8 $19 {has better winning chances.} 28. Qd2 Bh6 $1 {[%mdl 512]} 29. Qxh6 d2) 28. Qf4 $17 {[%emt 0:03:29] [#]} Rc8 $1 {[%emt 0:04:50]} 29. Rb8 {[%emt 0:04:40]} h5 {[%emt 0:00:26] ...Rxb8 is the strong threat.} 30. Rxc8+ {[%emt 0:01:00]} Qxc8 {[%emt 0:00:34]} (30... Nxc8 $17 31. Bxe4 d2) 31. Qd6 $36 {[%emt 0:00:56][%mdl 2048] White has good play.} Bf8 {[%emt 0:00:48]} 32. h3 {[%emt 0:02:24]} (32. a4 $142) 32... Nd5 {[%emt 0:02:03]} 33. Qxd5 $14 {[%emt 0:01:42][%cal Og2e4]} Qxc7 {[%emt 0:00:05]} 34. Bxe4 {[%emt 0:01:23]} Bxe4 {[%emt 0:01:03]} 35. Qxe4 {[%emt 0:00:04][%mdl 4096] Endgame KQR-KQB} d2 {[%emt 0:00:10]} 36. Qd3 {[%emt 0:03:42]} Qc1+ {[%emt 0:00:09]} 37. Kh2 {[%emt 0:00:37]} Kh7 {[%emt 0:01:40]} 38. a4 {[%emt 0:00:29]} Bc5 {[%emt 0:00:14]} (38... Qe1 $11) 39. Qf1 {[%emt 0:01:15]} (39. Qb3 $16 Kh6 40. Qd1) 39... Qc3 {[%emt 0:00:50]} 40. Qe2 {[%emt 0:00:52] Inhibits Qf3.} Qc1 {[%emt 0:00:35]} 41. Qd1 {[%emt 0:30:23]} Qc3 {[%emt 0:01:09]} 42. Kg2 {[%emt 0:00:00] Hoping for Qf3.} Kg7 {[%emt 0:08:31]} (42... Qd3 $11 {keeps the balance.}) 43. Qf3 $16 {[%emt 0:00:00]} Qd4 {[%emt 0:06:45]} (43... Qc4 $16) 44. a5 $18 {[%emt 0:00:00] Threatens to win with Rd1.} Qc4 {[%emt 0:01:17]} 45. Rb7 $2 {[%emt 0:00:00]} ({Better is} 45. h4 $18) 45... Bxf2 $2 {[%emt 0:05:53][%mdl 8192]} 46. a6 $2 {[%emt 0:00:00]} ({Only move:} 46. Kxf2 $18 Qd4+ 47. Kg2) 46... Bd4 $11 {[%emt 0:01:18] Strongly threatening ...Qa2. The position is equal.} 47. h4 {[%emt 0:00:00]} Qa2 {[%emt 0:03:02]} 48. Kh3 {[%emt 0:00:00]} Qe6+ {[%emt 0:00:29]} 49. Kh2 {[%emt 0:00:00]} Qa2 {[%emt 0:00:23]} 50. Kh3 {[%emt 0:00:00] What a bad dream for Black.  Weighted Error Value: White=0.56/Black=0.32} 1/2-1/2

[Event "Austrian Championship 2022"]
[Site "Vienna"]
[Date "2022.08.15"]
[Round "4.10"]
[White "Pilshofer, Paul"]
[Black "Borrmann, Laurenz"]
[Result "0-1"]
[ECO "D11"]
[WhiteElo "2223"]
[BlackElo "2274"]
[Annotator "TA"]
[PlyCount "50"]
[EventDate "2022.08.12"]
[EventType "swiss"]
[EventCountry "AUT"]
[SourceTitle "playchess.com"]
[Source "ChessBase"]
[SourceQuality "1"]
[TimeControl "40/5400+30:1800+30"]

{[%evp 13,50,0,7,-3,40,24,50,39,49,49,44,48,65,69,88,77,121,140,201,200,197,214,195,191,291,196,195,203,196,0,0,-87,-83,-75,-79,-98,-90,-29989,-29990]} 1. Nf3 {[%emt 0:20:31]} Nf6 {[%emt 0:03:34]} 2. g3 {[%emt 0:00:40]} d5 {[%emt 0:02:16]} 3. Bg2 {[%emt 0:01:43]} Bf5 {[%emt 0:01:50]} 4. d4 {[%emt 0:05:23][%cal Bd2d4,Bd4e5][%mdl 32]} e6 {[%emt 0:00:26]} 5. O-O {[%emt 0:00:20]} h6 {[%emt 0:01:52]} 6. c4 {[%emt 0:00:39]} c6 {[%emt 0:00:15]} 7. Nc3 {[%emt 0:00:47]} Nbd7 {[%emt 0:00:29]} 8. Ne5 {[%emt 0:07:02] D11: Slav Defence: 3 Nf3 sidelines and 3...Nf6 4 e3 Bg4.} Nxe5 {[%emt 0:22:58] was the old line (8...Be7).} 9. dxe5 {[%emt 0:00:31]} Ng4 {[%emt 0:01:29]} 10. cxd5 {[%emt 0:02:38] White is slightly better.} exd5 {[%emt 0:04:10]} 11. Qa4 {[%emt 0:13:52] [#]} Qd7 $146 {[%emt 0:07:49]} ({Predecessor:} 11... Nxe5 12. Nxd5 Bd6 13. Nc3 O-O 14. h3 Qb6 15. Ne4 Qb4 16. Qc2 Be7 17. Nf6+ Bxf6 18. Qxf5 {1-0 (58) Bogdan,D (2405)-Negulescu,A (2380) Calarasi 1995}) 12. e4 {[%emt 0:04:14]} dxe4 {[%emt 0:01:18]} 13. Nxe4 {[%emt 0:00:19]} Qe6 {[%emt 0:13:23]} 14. Bf4 {[%emt 0:22:46][%cal Bc1f4,Bf4d2,Bd2c3][%mdl 32] Strongly threatening Rad1.} (14. f4 h5 $11) 14... Bxe4 {[%emt 0:08:08]} 15. Qxe4 {[%emt 0:07:54]} g5 {[%emt 0:02:13] [#]} (15... Rd8 $16 16. h3 g5) 16. Bd2 $1 $18 {[%emt 0:01:53]} O-O-O {[%emt 0:02:21]} 17. Bc3 {[%emt 0:03:26]} h5 {[%emt 0:00:37]} 18. Rac1 {[%emt 0:00:57]} Rd5 {[%emt 0:05:45]} (18... Bc5 $142) 19. Qa4 {[%emt 0:00:53]} Bc5 {[%emt 0:03:59]} 20. Bxd5 {[%emt 0:02:17]} (20. Qc4 Bxf2+ 21. Kh1 (21. Rxf2 $2 Rd1+ 22. Be1 Rxe1+ 23. Rf1 Rxf1+ 24. Bxf1 Qxe5 $19) 21... Rd7 22. Qxe6 fxe6 $17) 20... Qxd5 {[%emt 0:00:09]} 21. Qb3 $2 {[%emt 0:00:36]} (21. Rce1 $18) 21... Qe4 $1 $11 {[%emt 0:06:05] aiming for ...Ne3.} 22. Rce1 {[%emt 0:01:29] Inhibits Ne3.} (22. Qxf7 $11 {remains equal.} Rf8 23. Qe6+ (23. Rce1 Qd3 $11) 23... Kb8 24. Bd4 (24. Rce1 Qd3 $11) 24... Qxd4 25. Rc4 Qxb2 26. Rxc5 Rxf2 27. Qd6+ Kc8 28. Rxc6+ (28. Qe6+ Kc7 $17) 28... bxc6 29. Qxc6+ Kb8 30. Qd6+ Kb7 31. Qd7+ Kb8 32. Qd6+ Kb7 33. Qd7+ Kb8 34. Qd6+) 22... Qf3 $40 {[%emt 0:02:07][%cal Rc5f2][%mdl 128] Black is out for blood.} 23. Qc2 {[%emt 0:00:17] Hoping for e6.} h4 {[%emt 0:00:09]} 24. Qe2 {[%emt 0:00:39]} Nxh2 {[%emt 0:00:33] ( -> ...Qxg3+). Dancing on a razor blade. 0x0.001b83eb5a90dp-1022s more active pieces.} 25. g4 {[%emt 0:00:37][%mdl 8192] [#]} Qh3 {[%emt 0:09:05] Weighted Error Value: White=0.60/Black=0.18 (very precise)} 0-1

[Event "Austrian Championship 2022"]
[Site "Vienna"]
[Date "2022.08.15"]
[Round "4.11"]
[White "Froewis, Annika"]
[Black "Ganaus, Hannes"]
[Result "1-0"]
[ECO "D00"]
[WhiteElo "2044"]
[BlackElo "2284"]
[Annotator "TA"]
[PlyCount "37"]
[EventDate "2022.08.12"]
[EventType "swiss"]
[EventCountry "AUT"]
[SourceTitle "playchess.com"]
[Source "ChessBase"]
[SourceQuality "1"]
[TimeControl "40/5400+30:1800+30"]

{[%evp 9,37,14,27,28,87,87,92,93,91,95,137,142,147,137,371,371,369,376,376,368,370,361,516,502,628,621,610,595,531,533]} 1. d4 {[%emt 0:00:03]} d5 {[%emt 0:00:33]} 2. Bf4 {[%emt 0:00:10]} c5 {[%emt 0:03:08][%cal Bc7c5,Bc5c4][%mdl 32]} 3. e3 {[%emt 0:02:05]} Nc6 {[%emt 0:00:17]} 4. c3 {[%emt 0:00:31]} Qb6 {[%emt 0:04:52]} 5. Qb3 {[%emt 0:00:38]} c4 {[%emt 0:15:58]} 6. Qc2 {[%emt 0:00:32] D00: 1 d4 d5: Unusual lines.} Bf5 {[%emt 0:01:30] 6...e5 is more advanced technology.} 7. Qxf5 $16 {[%emt 0:01:47]} Qxb2 {[%emt 0:00:18] [#]} 8. Qxd5 {[%emt 0:00:45][%cal Of1c4] White is better.} Qxa1 {[%emt 0:04:06]} 9. Qb5 {[%emt 0:00:24] White is more active.} O-O-O {[%emt 0:14:16] aiming for ...e5.} 10. Bxc4 {[%emt 0:00:15]} e5 {[%emt 0:03:21][%cal Of8b4] [#] And now ...Bb4! would win.} 11. Ne2 $1 {[%emt 0:13:33] [#]} Nf6 $146 {[%emt 0:35:47]} (11... exf4 12. O-O a6 13. Qb6 $16) (11... a6 $16 12. Qb6 exf4) ({Predecessor:} 11... exf4 12. O-O fxe3 13. fxe3 Nf6 14. Nd2 Qxf1+ 15. Kxf1 Bd6 16. e4 Bc7 17. h3 Nd7 {1-0 (31) Grachev,B (2640)-Gelfand,B (2720) Moscow 2008}) 12. Bxe5 $18 {[%emt 0:30:31]} a6 {[%emt 0:10:28]} 13. Qb6 {[%emt 0:13:36][%csl Ge5][%cal Rb6c7]} Nxe5 {[%emt 0:00:06]} 14. dxe5 {[%emt 0:04:31] The board is on fire.} Nd7 {[%emt 0:00:08]} 15. Qb3 {[%emt 0:01:15] Threatens to win with 0-0.} Nc5 {[%emt 0:00:04]} (15... Nxe5 $2 16. O-O $18) (15... Ba3 $142 16. O-O (16. Bxf7 Nc5 $14) 16... Qb2 17. Nxa3 Qxb3 18. Bxb3 Nxe5) 16. Qc2 {[%emt 0:00:36] White is clearly winning.} b5 {[%emt 0:02:33] [#]} 17. O-O $1 {[%emt 0:02:27]} bxc4 {[%emt 0:00:42]} 18. Nd2 {[%emt 0:01:54]} Qxf1+ {[%emt 0:00:16]} 19. Kxf1 {[%emt 0:00:22] Black did not feel at home in the position after the opening.  Weighted Error Value: White=0.01 (flawless) /Black=0.56} 1-0

[Event "Austrian Championship 2022"]
[Site "Vienna"]
[Date "2022.08.15"]
[Round "4.12"]
[White "Steindl, Johannes"]
[Black "Steiner, Bruno"]
[Result "1-0"]
[ECO "C41"]
[WhiteElo "2312"]
[BlackElo "2126"]
[Annotator "TA"]
[PlyCount "65"]
[EventDate "2022.08.12"]
[EventType "swiss"]
[EventCountry "AUT"]
[SourceTitle "playchess.com"]
[Source "ChessBase"]
[SourceQuality "1"]
[TimeControl "40/5400+30:1800+30"]

{[%evp 17,65,35,58,54,56,0,0,0,0,0,0,0,32,23,64,77,56,16,29,24,27,7,58,54,58,54,60,58,34,51,41,49,250,243,235,242,260,241,226,229,364,359,427,409,504,504,487,488,666,617]} 1. e4 {[%emt 1:31:00]} e5 {[%emt 0:04:15]} 2. Nf3 {[%emt 0:00:00]} d6 {[%emt 0:00:56]} 3. d4 {[%emt 0:00:00]} exd4 {[%emt 0:00:05]} 4. Nxd4 {[%emt 0:00:00]} Nf6 {[%emt 0:00:03]} 5. Nc3 {[%emt 0:00:00]} Be7 {[%emt 0:00:05]} 6. Bf4 {[%emt 0:00:00]} O-O {[%emt 0:00:08]} 7. Qd2 {[%emt 0:00:00]} Nc6 {[%emt 0:00:12]} 8. O-O-O {[%emt 0:00:00]} Nxd4 {[%emt 0:00:05]} 9. Qxd4 {[%emt 0:00:00]} Be6 {[%emt 0:00:06]} 10. Kb1 {[%emt 0:00:00] C41: Philidor Defence.} a6 {[%emt 0:00:11]} 11. Be2 {[%emt 0:00:00]} (11. f3 $14) 11... b5 $11 {[%emt 0:00:47][%cal Bb7b5,Bb5b4][%mdl 32]} 12. Rhe1 {[%emt 0:00:00] The position is equal.} c5 {[%emt 0:03:45]} 13. Qe3 {[%emt 0:00:00][%cal Of4d6] [#] Strongly threatening Bxd6!} b4 $146 {[%emt 0:00:11]} ({Predecessor:} 13... Qa5 14. g4 Rfe8 15. g5 b4 16. Nd5 Bxd5 17. exd5 Nxd5 18. Rxd5 Bxg5 19. Rxg5 Rxe3 20. Bxe3 {0-1 (33) Blomqvist,E (2525)-Pohjala,H (2408) Sweden 2015}) 14. Na4 {[%emt 0:00:00] Nxc5 is the strong threat.} Qc7 {[%emt 0:06:35]} (14... Qa5 $5 15. b3 Rad8 $11) 15. b3 {[%emt 0:00:00]} Nd7 {[%emt 0:06:17][%cal Bf6d7,Bd7e5,Be5g6][%mdl 32] Against e5} 16. Qg3 {[%emt 0:00:00][%cal Rf4d6] White is more active.} Ne5 {[%emt 0:02:05]} 17. Bh6 $40 {[%emt 0:00:00][%csl Gh6][%cal Rg3g7][%mdl 128] White has some attack.} Ng6 $1 {[%emt 0:05:15]} 18. Bg5 {[%emt 0:00:00]} Bxg5 {[%emt 0:24:34]} 19. Qxg5 {[%emt 0:00:00]} Rac8 {[%emt 0:04:19]} ({Better is} 19... a5 $11) 20. Qd2 $14 {[%emt 0:00:00]} Rfd8 {[%emt 0:01:56]} ({Weaker is} 20... c4 21. Qxd6 cxb3 22. cxb3 $16) 21. f4 $1 {[%emt 0:00:00][%cal Bf2f4,Bf4f5][%mdl 32] Hoping for f5.} d5 {[%emt 0:05:16]} 22. f5 $1 {[%emt 0:00:00]} dxe4 {[%emt 0:00:18]} 23. Qg5 {[%emt 0:00:00]} h6 {[%emt 0:08:17]} 24. Qg4 {[%emt 0:00:00]} Bd7 {[%emt 0:03:43] [#] A mistake that costs the game.} (24... Rxd1+ $1 $14 25. Rxd1 Bd7) 25. Rxd7 $1 $18 {[%emt 0:00:00][%mdl 512]} Qxd7 {[%emt 0:02:27]} 26. fxg6 {[%emt 0:00:00]} f5 {[%emt 0:00:18]} 27. Qh4 {[%emt 0:00:00]} Qd6 {[%emt 0:04:44] Inhibits Nb6.} 28. g4 {[%emt 0:00:00]} Qxg6 {[%emt 0:03:54]} (28... f4 $142 29. g5 (29. Bc4+ Kh8 $18) 29... Qxg6) 29. gxf5 {[%emt 0:00:00]} Qxf5 {[%emt 0:00:20]} 30. Bg4 {[%emt 0:00:00][%mdl 64] [#] Skewer} Qf8 {[%emt 0:02:38]} 31. Bxc8 {[%emt 0:00:00] White is clearly winning.} Rxc8 {[%emt 0:00:07]} 32. Qxe4 {[%emt 0:00:00]} c4 {[%emt 0:00:12]} 33. Nb6 {[%emt 0:00:00] Weighted Error Value: White=0.05 (flawless) /Black=0.41} 1-0

[Event "Austrian Championship 2022"]
[Site "Vienna"]
[Date "2022.08.15"]
[Round "4.13"]
[White "Trkulja, Zoran"]
[Black "Schroll, Gerhard"]
[Result "0-1"]
[ECO "B03"]
[WhiteElo "2111"]
[BlackElo "2281"]
[Annotator "TA"]
[PlyCount "74"]
[EventDate "2022.08.12"]
[EventType "swiss"]
[EventCountry "AUT"]
[SourceTitle "playchess.com"]
[Source "ChessBase"]
[SourceQuality "1"]
[TimeControl "40/5400+30:1800+30"]

{[%evp 11,73,20,28,35,37,15,43,52,117,118,109,93,131,72,82,79,80,65,80,72,67,43,93,82,89,64,61,66,46,45,68,70,77,52,70,54,56,40,48,4,4,10,10,0,0,0,0,0,0,0,0,-39,-8,-27,-22,-216,-217,-347,-215,-682,-418,-631,-617,-29999]} 1. e4 {[%emt 0:00:08][%cal Be2e4,Be4e5][%mdl 32]} Nf6 {[%emt 0:00:16]} 2. e5 {[%emt 0:01:51]} Nd5 {[%emt 0:00:01]} 3. d4 {[%emt 0:00:07]} d6 {[%emt 0:00:03]} 4. Bc4 {[%emt 0:02:11]} Nb6 {[%emt 0:00:26]} 5. Bb3 {[%emt 0:00:08]} Bf5 {[%emt 0:00:51]} 6. Qf3 {[%emt 0:06:25]} Qc8 {[%emt 0:00:02]} 7. exd6 {[%emt 0:11:41] B03: Alekhine's Defence: Four Pawns Attack.} ({Reject} 7. Qh5 e6 $11) 7... cxd6 {[%emt 0:02:12]} 8. Ne2 {[%emt 0:04:28]} Nc6 {[%emt 0:03:47]} 9. Nbc3 {[%emt 0:06:46] [#] White is slightly better.} d5 $146 {[%emt 0:32:37]} (9... g6 $14) ({Predecessor:} 9... Nb4 10. Kd1 e6 11. g4 Bg6 12. Nf4 Nc6 13. Be3 Na5 14. h4 Nxb3 15. axb3 f6 16. Nxg6 hxg6 {1-0 (32) Kristovic,M (2285)-Raguz,D (2180) Zagreb 2012}) 10. Nxd5 $16 {[%emt 0:10:18]} Nxd5 {[%emt 0:01:31]} 11. Bxd5 {[%emt 0:00:54]} e6 {[%emt 0:01:46]} 12. Bxc6+ {[%emt 0:05:36]} (12. Bb3 $142) 12... Qxc6 {[%emt 0:00:01]} 13. Qxc6+ {[%emt 0:00:20]} bxc6 {[%emt 0:00:00]} 14. c3 {[%emt 0:03:41]} Be7 {[%emt 0:00:47]} 15. Bf4 {[%emt 0:04:26]} g5 {[%emt 0:02:14]} 16. Bg3 {[%emt 0:00:24]} Kd7 {[%emt 0:02:18]} (16... Rg8 $14) 17. h4 {[%emt 0:02:52]} h6 {[%emt 0:01:31]} 18. hxg5 {[%emt 0:00:36]} hxg5 {[%emt 0:00:01]} 19. Rxh8 {[%emt 0:02:02]} (19. Kd2 {with more complications.} g4 20. f3 Rag8 21. Bf4) 19... Rxh8 {[%emt 0:00:01]} 20. Kd2 {[%emt 0:00:15]} Be4 {[%emt 0:08:49]} 21. f3 {[%emt 0:01:04]} Bd5 {[%emt 0:00:54]} 22. Rf1 {[%emt 0:09:17]} f6 {[%emt 0:05:28]} 23. b3 {[%emt 0:05:22] [#] And now c4 would win.} c5 $1 {[%emt 0:00:06]} 24. c4 {[%emt 0:00:32]} Bb7 {[%emt 0:01:15][%cal Og5g4]} 25. Kc3 {[%emt 0:09:17] Threatening Rd1.} cxd4+ {[%emt 0:08:55]} 26. Nxd4 {[%emt 0:00:06] With the idea Rd1.} ({Much worse is} 26. Kxd4 e5+ 27. Kd3 g4 $15) 26... e5 {[%emt 0:00:13]} 27. Nc2 {[%emt 0:04:11]} g4 {[%emt 0:05:15]} 28. fxg4 {[%emt 0:05:26]} Bxg2 {[%emt 0:01:41]} 29. Rg1 {[%emt 0:00:26]} Be4 {[%emt 0:03:28]} 30. Re1 {[%emt 0:04:05]} Bg6 {[%emt 0:06:38]} 31. Ne3 {[%emt 0:00:30]} Rh3 {[%emt 0:00:18]} 32. Bf2 {[%emt 0:00:05]} a5 {[%emt 0:02:14] [#] White must now prevent ...Bb4+.} 33. c5 $2 {[%emt 0:00:53] Now White is beyond hope.} (33. Rd1+ $1 $11 {and White stays safe.} Ke6 34. Kd2) 33... Bxc5 $19 {[%emt 0:00:32]} 34. Kc4 {[%emt 0:00:18]} (34. Rd1+ {is a better defense.} Ke6 35. Kd2) 34... Bb4 {[%emt 0:02:21] This bishop pair is nice.} 35. Re2 {[%emt 0:00:45]} (35. Rc1) 35... Kc6 {[%emt 0:02:47] Hoping for ...Rf3.} 36. a3 {[%emt 0:00:06]} (36. Be1 $142 Bc5 37. Bd2) 36... Bxa3 {[%emt 0:01:00]} 37. Nf5 {[%emt 0:00:21]} Bf7# {[%emt 0:00:15] Weighted Error Value: White=0.71/Black=0.25 (precise)} 0-1